bitfinex/quotes_ETHUSD_20251130
["timestamp","ask_amount","ask_price","bid_price","bid_amount"]
[1764513848689,0.4536,3032.2,3032.1,3.30804425]
[1764513849292,0.52272011,3032.5,3032.1,3.30804425]
[1764513850086,0.4815,3032.5,3032.1,6.6060885]
[1764513850670,0.4815,3032.5,3032.1,3.30804425]
[1764513851676,0.4815,3032.5,3032.1,6.6060885]
[1764513852904,0.002,3032.5,3032.1,3.30804425]
[1764513853097,0.4795,3032.4,3032.1,3.30804425]
[1764513853499,0.4795,3032.4,3032.1,6.6060885]
[1764513854490,0.4795,3032.4,3032.1,3.30804425]
[1764513855205,0.4795,3032.4,3032.1,6.6060885]
[1764513856225,0.002,3032.5,3032.3,0.3224]
[1764513856429,0.002,3032.5,3032.1,0.01]
[1764513856430,0.9331,3032.4,3032.1,0.01]
[1764513856609,0.4536,3032.2,3032.1,0.01]
[1764513856920,0.4536,3032.2,3032.1,3.30804425]
[1764513857224,0.9331,3032.2,3032.1,3.30804425]
[1764513857429,4.37015189,3032.2,3032.1,0.01]
[1764513857609,8.31410257,3032.2,3032.1,0.01]
[1764513858289,8.31410257,3032.2,3032.1,0.01]
[1764513859119,9.03969668,3032.2,3032.1,0.01]
[1764513860100,9.44520068,3032.2,3032.1,0.01]
[1764513864302,5.60264479,3032.2,3032.1,0.01]
[1764513864507,5.64386898,3032.2,3032.1,0.01]
[1764513877198,2.34593349,3032.2,3032.1,0.01]
[1764513877830,2.13693349,3032.2,3032.1,0.01]
[1764513878036,0.4536,3032.2,3032.1,0.01]
[1764513878338,1.2204183,3032.2,3032.1,0.01]
[1764513878836,0.49482419,3032.2,3032.1,0.01]
[1764513879021,0.25022283,3032.3,3032.1,0.01]
[1764513879221,0.74682283,3032.3,3032.1,0.01]
[1764513879427,0.25022283,3032.3,3032.1,0.01]
[1764513880549,0.97581694,3032.3,3032.1,0.01]
[1764513880706,0.487,3032.2,3032.1,0.01]
[1764513881123,0.9836,3032.2,3032.1,0.01]
[1764513881901,0.487,3032.2,3032.1,0.01]
[1764513882102,0.25022283,3032.3,3032.1,0.01]
[1764513882307,1.22424263,3032.3,3032.1,0.01]
[1764513882508,0.487,3032.2,3032.1,0.01]
[1764513883509,0.002,3032.4,3032.1,0.01]
[1764513883709,0.53982147,3032.4,3032.1,0.01]
[1764513886438,0.487,3032.2,3032.1,0.01]
[1764513886950,0.9836,3032.2,3032.1,0.01]
[1764513887410,0.487,3032.2,3032.1,0.01]
[1764513887610,1.26541558,3032.4,3032.1,0.01]
[1764513887812,1.69960242,3032.3,3032.1,0.01]
[1764513888041,0.04122419,3032.2,3032.1,0.01]
[1764513889627,0.4966,3032.3,3032.1,0.01]
[1764513889818,0.04122419,3032.2,3032.1,0.01]
[1764513890447,0.72759411,3032.4,3032.1,0.01]
[1764513890448,0.04122283,3032.3,3032.1,0.4336]
[1764513890941,0.04122283,3032.3,3032.1,0.3324]
[1764513893048,0.04122283,3032.3,3032.1,0.01]
[1764513893434,0.4731,3032.2,3032.1,0.01]
[1764513893942,0.9509,3032.2,3032.1,0.01]
[1764513894328,0.04322147,3032.4,3032.1,0.3324]
[1764513895555,0.002,3032.4,3032.3,0.3224]
[1764513897045,0.002,3032.4,3032.3,0.6448]
[1764513897375,0.002,3032.4,3032.3,3.94262673]
[1764513897579,0.002,3032.4,3032.3,3.62022673]
[1764513900984,0.4751,3032.4,3032.1,0.01]
[1764513901156,0.4731,3032.2,3032.1,0.01]
[1764513901356,0.9509,3032.2,3032.1,0.01]
[1764513902390,0.73002147,3032.4,3032.1,0.01]
[1764513905269,1.22653781,3032.4,3032.1,3.30803939]
[1764513905578,0.73002147,3032.4,3032.1,3.30803939]
[1764513905789,0.04322147,3032.4,3032.1,3.30803939]
[1764513906100,0.002,3032.4,3032.3,0.3224]
[1764513906975,0.51632147,3032.4,3032.1,0.01]
[1764513907296,0.97516375,3032.4,3032.1,3.30804425]
[1764513907463,0.52102147,3032.4,3032.1,3.30804425]
[1764513908397,0.52102147,3032.4,3032.1,0.01]
[1764513909007,0.52102147,3032.4,3032.1,3.30803105]
[1764513909902,0.002,3032.4,3032.3,0.3224]
[1764513913389,0.4751,3032.4,3032.1,0.01]
[1764513913577,0.4731,3032.3,3032.1,3.30803787]
[1764513914016,0.4798,3032.4,3032.1,3.30803787]
[1764513914308,0.002,3032.4,3032.1,3.30803787]
[1764513915606,0.4731,3032.2,3032.1,0.01]
[1764513915982,0.9509,3032.2,3032.1,0.01]
[1764513916212,1.46691785,3032.2,3032.1,0.01]
[1764513916813,3.6890946,3032.2,3032.1,0.01]
[1764513917812,6.98703009,3032.2,3032.1,0.01]
[1764513918313,6.88703009,3032.2,3032.1,0.01]
[1764513920144,1.71471196,3032.2,3032.1,0.01]
[1764513920414,1.96493615,3032.2,3032.1,0.01]
[1764513920602,1.4489183,3032.2,3032.1,0.01]
[1764513921186,1.9267183,3032.2,3032.1,0.01]
[1764513923115,1.4489183,3032.2,3032.1,0.01]
[1764513923616,1.9398183,3032.2,3032.1,0.01]
[1764513925416,0.9758183,3032.2,3032.1,0.01]
[1764513925884,1.4606183,3032.2,3032.1,0.01]
[1764513926085,1.99896616,3032.2,3032.1,0.01]
[1764513926297,2.48986616,3032.2,3032.1,0.01]
[1764513927422,1.99896616,3032.2,3032.1,0.01]
[1764513929341,0.72559411,3032.2,3032.1,0.3324]
[1764513932848,0.72559411,3032.2,3032.1,0.01]
[1764513934246,0.72559411,3032.2,3032.1,0.3324]
[1764513935269,0.72559411,3032.2,3032.1,0.01]
[1764513937375,0.72559411,3032.2,3032.1,0.3324]
[1764513937578,0.72559411,3032.2,3032.1,0.4336]
[1764513938079,0.72559411,3032.2,3032.1,0.3324]
[1764513938681,0.72559411,3032.2,3032.1,0.01]
[1764513941678,1.70129411,3032.2,3032.1,0.01]
[1764513941884,9.28777952,3032.2,3032.1,0.01]
[1764513942099,1.23109811,3032.1,3032.0,0.001]
[1764513942302,2.45702366,3032.1,3032.0,0.001]
[1764513942805,2.5891845,3032.1,3032.0,0.001]
[1764513943323,2.4891845,3032.1,3032.0,0.001]
[1764513943600,4.25632798,3032.1,3032.0,0.001]
[1764513943801,7.55437223,3032.1,3032.0,0.001]
[1764513944005,10.95343362,3032.1,3032.0,0.001]
[1764513945470,0.505504,3031.8,3031.7,0.001]
[1764513945674,5.19741468,3031.8,3031.7,0.001]
[1764513945873,9.59499675,3031.8,3031.7,0.001]
[1764513946086,9.55376712,3031.8,3031.7,0.001]
[1764513949379,9.88616712,3031.8,3031.7,0.001]
[1764513954425,9.25726312,3031.8,3031.7,0.001]
[1764513954722,9.3894327,3031.8,3031.7,0.001]
[1764513955425,9.8949367,3031.8,3031.7,0.001]
[1764513962731,9.6859367,3031.8,3031.7,0.001]
[1764513962901,9.8949367,3031.8,3031.7,0.001]
[1764513963943,4.63227618,3031.8,3031.7,0.3334]
[1764513964105,4.27419434,3031.8,3031.7,0.3334]
[1764513964301,0.04122963,3031.8,3031.7,0.3334]
[1764513964543,0.209,3032.0,3031.7,0.6658]
[1764513964830,0.209,3032.0,3031.8,0.3324]
[1764513964831,0.04122827,3031.9,3031.8,0.3324]
[1764513965010,0.25022691,3032.0,3031.8,0.3324]
[1764513965349,0.97582102,3032.0,3031.9,0.3324]
[1764513965836,0.97582102,3032.0,3031.9,0.6648]
[1764513965837,0.25022691,3032.0,3031.9,0.6648]
[1764513966215,0.72559411,3032.0,3031.9,0.6648]
[1764513966414,0.04122555,3032.1,3031.9,0.6648]
[1764513966730,0.209,3032.3,3032.0,0.6648]
[1764513966935,0.209,3032.3,3032.0,0.3324]
[1764513967139,0.04122419,3032.2,3032.1,0.3324]
[1764513967331,0.25022283,3032.3,3032.2,0.4381]
[1764513967732,0.25022283,3032.3,3032.2,0.7705]
[1764513967934,0.209,3032.3,3032.2,0.7705]
[1764513968434,0.002,3032.4,3032.2,0.7705]
[1764513968742,0.002,3032.4,3032.3,0.6648]
[1764513969113,0.002,3032.4,3032.3,3.96262673]
[1764513969534,0.002,3032.5,3032.3,3.96262673]
[1764513969709,0.002,3032.5,3032.4,4.10508694]
[1764513971540,0.002,3032.7,3032.4,10.70052288]
[1764513971736,0.002,3032.7,3032.6,3.77268694]
[1764513971941,0.002,3032.7,3032.2,0.1057]
[1764513972105,0.002,3032.7,3032.2,3.40362601]
[1764513972310,0.002,3032.7,3032.6,0.3324]
[1764513973916,0.002,3032.7,3032.6,0.6648]
[1764513974422,0.002,3032.7,3032.6,3.96230049]
[1764513975737,0.002,3032.7,3032.6,0.3324]
[1764513975921,0.002,3032.7,3032.6,3.96230049]
[1764513977342,0.002,3032.7,3032.6,3.62990049]
[1764513977524,0.002,3032.7,3032.6,3.96230049]
[1764513979729,0.002,3032.7,3032.6,4.09436316]
[1764513981453,0.002,3032.7,3032.6,7.5346501]
[1764513984560,0.002,3032.7,3032.6,7.9401541]
[1764513986259,0.002,3032.7,3032.6,7.5346501]
[1764513986455,0.002,3032.7,3032.6,7.7436501]
[1764513988331,0.002,3032.7,3032.6,7.73985902]
[1764513989342,0.002,3032.7,3032.6,7.53085902]
[1764513989545,0.002,3032.7,3032.3,3.29782673]
[1764513989546,0.4755,3032.7,3032.3,3.29782673]
[1764513989862,0.4755,3032.7,3032.6,0.3324]
[1764513989863,0.002,3032.7,3032.6,0.3324]
[1764513990252,0.002,3032.7,3032.6,3.62990049]
[1764513991644,0.002,3032.7,3032.6,3.96230049]
[1764513992468,0.002,3032.7,3032.6,4.09436054]
[1764513996947,0.002,3032.7,3032.6,9.11545865]
[1764513998042,0.002,3032.7,3032.6,9.32445865]
[1764513999176,0.002,3032.7,3032.6,8.37755465]
[1764513999374,0.002,3032.7,3032.6,8.58655465]
[1764513999946,0.002,3032.7,3032.6,4.69655465]
[1764514000661,0.002,3032.7,3032.6,5.02895465]
[1764514002552,0.002,3032.7,3032.6,4.48755465]
[1764514002748,0.002,3032.7,3032.6,4.69655465]
[1764514003077,0.002,3032.7,3032.6,3.42956054]
[1764514003277,0.4755,3032.7,3032.6,3.50650049]
[1764514004257,0.4755,3032.7,3032.6,3.29750049]
[1764514004452,0.4755,3032.7,3032.6,3.50650049]
[1764514004794,0.002,3032.7,3032.6,3.83890049]
[1764514004956,0.002,3032.7,3032.6,4.17130049]
[1764514005152,0.002,3032.7,3032.6,3.76196185]
[1764514005462,0.002,3032.7,3032.6,3.97096185]
[1764514006068,0.002,3032.7,3032.6,4.30336185]
[1764514006271,0.002,3032.7,3032.6,5.02895596]
[1764514008564,0.002,3032.7,3032.6,9.32445996]
[1764514008888,0.002,3033.0,3032.8,0.737904]
[1764514009062,0.002,3033.0,3032.9,7.915903]
[1764514009490,0.002,3033.0,3032.9,8.248303]
[1764514010385,0.002,3033.0,3032.9,11.54547732]
[1764514010586,0.002,3033.0,3032.9,11.67750424]
[1764514011260,0.002,3033.0,3032.9,9.89936968]
[1764514011758,0.002,3033.0,3032.9,10.10836968]
[1764514011958,0.002,3033.0,3032.9,9.97634276]
[1764514012158,0.002,3033.0,3032.9,4.35516843]
[1764514012564,0.002,3033.0,3032.9,4.56416843]
[1764514012763,0.002,3033.0,3032.9,9.97634276]
[1764514015994,0.002,3033.0,3032.9,9.64394276]
[1764514016502,0.002,3033.0,3032.9,9.97634276]
[1764514017876,0.002,3033.0,3032.9,13.86634276]
[1764514018399,0.002,3033.0,3032.9,13.65734276]
[1764514018580,0.002,3033.0,3032.9,13.86634276]
[1764514020570,0.002,3033.5,3033.2,0.405504]
[1764514020871,0.002,3033.5,3033.2,0.737904]
[1764514021070,0.002,3033.9,3033.7,0.3324]
[1764514021307,0.002,3033.9,3033.8,6.67916844]
[1764514021483,0.002,3033.9,3033.8,1.67249811]
[1764514021676,0.002,3033.9,3033.8,2.00489811]
[1764514022176,0.002,3033.9,3033.6,1.77405125]
[1764514022378,0.9647,3033.9,3033.7,0.209]
[1764514022581,1.1608,3033.9,3033.8,3.29619618]
[1764514022964,0.6934,3033.9,3033.8,3.29619618]
[1764514023774,0.6934,3033.9,3033.8,3.50519618]
[1764514024101,1.1608,3033.9,3033.8,3.50519618]
[1764514024891,0.6934,3033.9,3033.8,3.50519618]
[1764514025869,1.1608,3033.9,3033.8,3.50519618]
[1764514026175,0.4674,3034.6,3033.9,0.72559411]
[1764514026405,0.4674,3034.4,3033.9,0.72559411]
[1764514026898,0.185,3035.1,3034.1,4.35386438]
[1764514027099,0.4674,3034.7,3034.1,4.45956438]
[1764514029011,0.185,3035.1,3034.1,4.35386438]
[1764514029198,0.4973,3034.2,3034.1,4.02146438]
[1764514029380,0.9647,3034.2,3034.1,4.23046438]
[1764514029580,0.9647,3034.2,3034.1,3.50487027]
[1764514031281,0.002,3034.2,3034.1,3.50487027]
[1764514031507,0.9647,3034.2,3034.1,3.50487027]
[1764514032414,0.4973,3034.2,3034.1,3.50487027]
[1764514032794,0.002,3034.2,3034.1,3.83727027]
[1764514033006,0.002,3034.2,3034.1,3.94297027]
[1764514033886,0.002,3034.2,3034.1,4.27537027]
[1764514034288,0.002,3034.2,3034.1,5.00096438]
[1764514035088,0.002,3034.2,3034.1,5.40646838]
[1764514035716,0.002,3034.2,3034.1,9.31106838]
[1764514036310,0.002,3034.2,3034.1,5.19746838]
[1764514036487,0.002,3034.2,3034.1,5.07406838]
[1764514037023,0.002,3034.2,3034.1,5.40646838]
[1764514038119,0.002,3034.2,3034.1,4.75936838]
[1764514038426,0.4973,3034.2,3034.1,4.23046438]
[1764514039094,0.002,3034.2,3034.1,4.56286438]
[1764514039316,0.002,3034.2,3034.1,4.66856438]
[1764514040192,0.002,3034.2,3034.1,4.56286438]
[1764514040412,0.002,3034.2,3034.1,4.23046438]
[1764514040998,0.002,3034.2,3034.1,4.56286438]
[1764514041202,0.002,3034.2,3034.1,5.00096438]
[1764514043095,0.002,3034.2,3034.1,5.40646838]
[1764514043500,0.002,3034.2,3034.1,9.29646838]
[1764514044307,0.002,3034.2,3034.1,11.07051963]
[1764514044698,0.002,3034.2,3034.1,15.28613963]
[1764514044899,0.002,3034.2,3034.1,13.51208838]
[1764514045502,1e-08,3034.5,3034.4,0.737904]
[1764514045702,1e-08,3034.5,3034.4,5.35349811]
[1764514045935,1e-08,3034.5,3034.4,5.68589811]
[1764514046432,1e-08,3034.5,3034.4,5.35349811]
[1764514047296,1e-08,3034.5,3034.4,5.68589811]
[1764514047731,1e-08,3034.5,3034.4,8.98144253]
[1764514048420,1e-08,3034.5,3034.4,9.19044253]
[1764514049131,1e-08,3034.5,3034.4,10.96358215]
[1764514049747,1e-08,3034.5,3034.4,7.07358215]
[1764514050035,1e-08,3034.5,3034.4,10.96358215]
[1764514050412,1e-08,3034.5,3034.4,15.42382169]
[1764514052460,1e-08,3034.5,3034.4,15.09142169]
[1764514053130,1e-08,3034.5,3034.4,15.42382169]
[1764514053517,1e-08,3034.5,3034.4,11.53382169]
[1764514055253,1e-08,3034.5,3034.4,11.20142169]
[1764514056748,0.46660001,3034.5,3034.4,10.66002169]
[1764514056925,0.46660001,3034.5,3034.4,8.48137807]
[1764514057131,0.92120001,3034.5,3034.4,4.23013853]
[1764514061851,0.46660001,3034.5,3034.4,4.23013853]
[1764514062159,1e-08,3034.5,3034.4,4.23013853]
[1764514062318,0.46660001,3034.5,3034.4,4.23013853]
[1764514063446,1e-08,3034.5,3034.4,4.56253853]
[1764514063663,0.46660001,3034.5,3034.4,6.00327815]
[1764514065019,0.92120001,3034.5,3034.4,4.23013853]
[1764514065422,1e-08,3034.5,3034.4,4.56253853]
[1764514065840,0.46660001,3034.5,3034.4,4.23013853]
[1764514066055,1e-08,3034.5,3034.4,6.74118215]
[1764514068335,1e-08,3034.5,3034.4,10.63118215]
[1764514068957,1e-08,3034.5,3034.4,10.96358215]
[1764514069264,1e-08,3034.5,3034.4,9.19044253]
[1764514071640,1e-08,3034.5,3034.4,8.85804253]
[1764514071856,1e-08,3034.5,3034.4,8.52564253]
[1764514072546,1e-08,3034.5,3034.4,8.98024253]
[1764514072859,0.46660001,3034.5,3034.4,8.77124253]
[1764514073065,1e-08,3034.5,3034.4,9.31264253]
[1764514074344,1e-08,3034.5,3034.4,12.74388519]
[1764514074748,1e-08,3034.5,3034.4,16.50752785]
[1764514075378,1e-08,3034.5,3034.4,13.07628519]
[1764514076281,1e-08,3034.5,3034.4,13.07728519]
[1764514076856,1e-08,3034.5,3034.4,12.61852785]
[1764514077253,0.002,3034.6,3034.5,1.13109811]
[1764514077553,0.002,3034.6,3034.5,1.79589811]
[1764514077954,0.002,3034.6,3034.5,4.75893393]
[1764514078976,0.002,3034.6,3034.5,8.19017659]
[1764514079176,0.002,3034.6,3034.5,4.75893393]
[1764514080166,0.002,3034.6,3034.5,5.24463393]
[1764514080387,0.002,3034.6,3034.5,8.67587659]
[1764514080689,0.002,3035.2,3034.9,18.048059]
[1764514080877,0.002,3035.2,3035.1,4.16914666]
[1764514081258,0.002,3035.2,3035.1,5.38044077]
[1764514081670,0.002,3035.2,3035.1,5.58944077]
[1764514082192,0.002,3035.2,3035.1,8.88422512]
[1764514082486,0.6747,3036.0,3035.3,0.405504]
[1764514082788,0.4857,3035.9,3035.8,3.43124266]
[1764514082988,0.4857,3035.9,3035.8,3.64024266]
[1764514083188,0.9418,3035.9,3035.8,3.64024266]
[1764514083584,0.9418,3035.9,3035.8,4.58204266]
[1764514084092,0.4561,3035.9,3035.8,7.87606729]
[1764514085291,0.4857,3036.1,3035.8,7.87606729]
[1764514085591,0.4857,3036.1,3035.8,11.17009192]
[1764514085789,0.6818,3036.3,3035.8,14.46411655]
[1764514085987,0.6818,3036.3,3036.2,3.43124266]
[1764514086194,0.1961,3036.3,3036.2,3.50259067]
[1764514086357,0.6522,3036.3,3036.2,3.50259067]
[1764514086787,1.1379,3036.3,3036.2,3.50259067]
[1764514086975,1.1379,3036.3,3036.2,3.29359067]
[1764514087161,1.1379,3036.3,3035.9,3.50289593]
[1764514087357,0.4857,3036.2,3035.9,3.50289593]
[1764514087591,0.4561,3036.0,3035.6,3.78372789]
[1764514087780,0.1865,3035.7,3035.6,3.29421508]
[1764514087980,0.6426,3035.7,3035.6,3.29421508]
[1764514088174,1.1283,3035.7,3035.2,0.72559411]
[1764514088488,0.4857,3035.6,3035.4,0.209]
[1764514088891,0.4561,3035.5,3035.4,0.209]
[1764514089282,0.9418,3035.5,3035.4,0.209]
[1764514090198,0.9418,3035.5,3035.4,3.50345872]
[1764514090982,0.9418,3035.5,3035.4,3.29445872]
[1764514091299,0.9418,3035.5,3035.4,3.50345872]
[1764514093181,0.9418,3035.5,3035.4,3.29445872]
[1764514093503,0.9418,3035.5,3035.4,3.29545872]
[1764514093668,0.9418,3035.5,3035.4,3.50445872]
[1764514094300,0.9418,3035.5,3035.4,3.29545872]
[1764514094593,0.9418,3035.5,3035.4,3.50445872]
[1764514101777,0.4561,3035.5,3035.4,3.50445872]
[1764514102479,0.9174,3035.5,3035.4,3.29545872]
[1764514102686,0.9174,3035.5,3035.4,3.50445872]
[1764514105006,0.9174,3035.5,3035.0,0.6732]
[1764514105205,4.64719343,3035.7,3035.0,0.6732]
[1764514105206,0.4522,3035.1,3035.0,0.6732]
[1764514105411,0.4522,3035.1,3035.0,0.001]
[1764514105576,0.9135,3035.1,3035.0,0.001]
[1764514108124,0.9135,3035.1,3035.0,0.21]
[1764514109786,0.9135,3035.1,3035.0,3.50489291]
[1764514112323,0.4613,3035.6,3035.0,10.58147873]
[1764514112615,0.22767666,3035.7,3035.0,10.58147873]
[1764514112616,0.1865,3035.7,3035.0,11.07947873]
[1764514112799,0.002,3035.6,3035.0,11.07947873]
[1764514113005,0.002,3035.6,3035.0,14.37437164]
[1764514113324,0.4613,3035.5,3035.0,10.58147873]
[1764514115507,0.4522,3035.1,3035.0,3.50489291]
[1764514116922,0.002,3035.6,3035.0,10.58147873]
[1764514117128,0.002,3035.6,3035.0,11.07947873]
[1764514118484,0.4613,3035.5,3035.0,9.88567873]
[1764514118694,0.4522,3035.1,3035.0,3.29589291]
[1764514118898,0.4522,3035.1,3035.0,0.001]
[1764514119120,0.9135,3035.1,3035.0,0.21]
[1764514120840,0.9135,3035.1,3035.0,3.50489291]
[1764514121040,0.9135,3035.1,3035.0,0.21]
[1764514121955,0.9135,3035.1,3035.0,3.50489291]
[1764514125259,0.9135,3035.1,3035.0,0.21]
[1764514127707,0.9135,3035.1,3035.0,3.50489291]
[1764514129834,0.9135,3035.1,3035.0,3.50489291]
[1764514131452,0.4633,3035.5,3035.0,6.79978582]
[1764514131655,0.04118073,3035.4,3035.0,6.79978582]
[1764514131869,0.4522,3035.1,3035.0,3.50489291]
[1764514132373,0.9142,3035.1,3035.0,3.50489291]
[1764514132535,0.4522,3035.1,3035.0,3.50489291]
[1764514133848,0.462,3035.4,3035.0,6.79978582]
[1764514134049,0.002,3035.5,3035.0,6.79978582]
[1764514134220,0.4574,3035.1,3035.0,3.50489291]
[1764514135560,0.9194,3035.1,3035.0,3.29589291]
[1764514135743,0.9194,3035.1,3035.0,0.21]
[1764514136524,0.9194,3035.1,3035.0,0.001]
[1764514136830,0.9194,3035.1,3035.0,0.21]
[1764514138358,0.9194,3035.1,3035.0,3.50489291]
[1764514138854,0.4574,3035.1,3035.0,3.50489291]
[1764514140660,0.002,3035.5,3035.0,7.27908582]
[1764514140829,0.464,3035.5,3035.0,7.27908582]
[1764514141025,0.464,3035.5,3035.4,0.4793]
[1764514141026,0.002,3035.5,3035.4,0.4793]
[1764514141271,0.002,3035.5,3035.4,0.6883]
[1764514141433,0.002,3035.5,3035.4,1.1842]
[1764514142454,0.002,3035.5,3035.4,3.98275872]
[1764514142665,0.4594,3035.5,3035.4,3.50345872]
[1764514142961,0.002,3035.5,3035.4,3.98275872]
[1764514143134,0.002,3035.5,3035.4,4.47865872]
[1764514143734,0.002,3035.5,3035.4,5.20425283]
[1764514144364,0.002,3035.5,3035.4,4.22905283]
[1764514144568,0.002,3035.5,3035.4,5.20425283]
[1764514144767,0.002,3035.5,3035.4,4.70835283]
[1764514145370,0.002,3035.5,3035.4,4.99525283]
[1764514145578,0.002,3035.5,3035.4,5.20425283]
[1764514153763,0.002,3035.5,3035.4,4.70835283]
[1764514153991,0.002,3035.5,3035.4,5.20425283]
[1764514156898,0.002,3035.5,3035.4,4.70835283]
[1764514157294,0.002,3035.5,3035.4,4.22905283]
[1764514158075,0.4594,3035.5,3035.4,3.29445872]
[1764514158275,0.9214,3035.5,3035.4,3.50345872]
[1764514159567,0.4594,3035.5,3035.4,3.50345872]
[1764514160703,0.9214,3035.5,3035.4,3.50345872]
[1764514161402,0.4594,3035.5,3035.4,3.50345872]
[1764514162092,0.4594,3035.5,3035.4,3.98275872]
[1764514162093,0.002,3035.5,3035.4,3.98275872]
[1764514162790,0.4906,3035.5,3035.4,3.50345872]
[1764514162990,0.4906,3035.5,3035.4,3.29445872]
[1764514163192,0.9463,3035.5,3035.4,3.50345872]
[1764514164420,0.4906,3035.5,3035.4,3.50345872]
[1764514164787,0.9463,3035.5,3035.1,3.29478435]
[1764514164990,0.002,3035.5,3035.1,6.5895687]
[1764514165217,0.4577,3035.5,3035.1,6.5895687]
[1764514165613,0.4577,3035.5,3035.2,0.209]
[1764514165995,0.4886,3035.3,3035.2,0.209]
[1764514166411,0.4886,3035.3,3035.2,3.5036758]
[1764514166719,0.9443,3035.3,3035.2,3.5036758]
[1764514167309,0.4941,3035.3,3035.2,3.5036758]
[1764514167725,0.9447,3035.3,3035.2,3.5036758]
[1764514174249,0.9447,3035.3,3035.2,3.2946758]
[1764514174451,0.9447,3035.3,3035.2,3.5036758]
[1764514175162,0.9447,3035.3,3035.1,0.209]
[1764514175365,0.4602,3035.2,3035.1,3.50378435]
[1764514176275,0.4602,3035.2,3035.1,3.29478435]
[1764514180450,0.002,3035.5,3035.1,7.2943687]
[1764514180650,0.4577,3035.5,3035.1,7.2943687]
[1764514180857,0.4886,3035.2,3035.1,3.50378435]
[1764514181981,0.4557,3035.4,3035.1,6.7985687]
[1764514183196,0.002,3035.5,3035.3,0.4958]
[1764514184269,0.002,3035.4,3035.3,0.4958]
[1764514184471,0.002,3035.4,3035.3,3.79036725]
[1764514184896,0.4906,3035.4,3035.3,3.79036725]
[1764514185099,0.4906,3035.4,3035.3,3.29456725]
[1764514185997,0.002,3035.4,3035.3,4.97106136]
[1764514188183,0.002,3035.4,3035.3,5.17906136]
[1764514193004,0.002,3035.4,3035.3,4.51596136]
[1764514193170,0.002,3035.4,3035.3,4.72396136]
[1764514194810,0.4758,3035.4,3035.3,4.22816136]
[1764514195394,0.9265,3035.4,3035.3,4.22816136]
[1764514195597,0.002,3035.4,3035.3,4.71716136]
[1764514196107,0.4758,3035.4,3035.3,4.22816136]
[1764514196302,0.4758,3035.4,3035.3,4.02016136]
[1764514196502,0.4758,3035.4,3035.3,4.22816136]
[1764514197186,0.002,3035.4,3035.3,4.71716136]
[1764514197390,0.002,3035.4,3035.3,5.20466136]
[1764514200064,0.4758,3035.4,3035.3,4.22816136]
[1764514200261,0.002,3035.4,3035.3,4.71716136]
[1764514200926,0.002,3035.4,3035.3,4.50916136]
[1764514201253,0.4758,3035.4,3035.3,4.22816136]
[1764514201638,0.002,3035.4,3035.3,4.22816136]
[1764514202437,0.4758,3035.4,3035.3,4.22816136]
[1764514202638,0.4758,3035.4,3035.3,4.22916136]
[1764514203361,0.4758,3035.4,3035.3,4.71816136]
[1764514203362,0.002,3035.4,3035.3,4.71816136]
[1764514208068,0.002,3035.4,3035.3,4.22916136]
[1764514208973,0.002,3035.4,3035.3,4.02116136]
[1764514209173,0.002,3035.4,3035.3,4.22916136]
[1764514210570,0.4758,3035.4,3035.3,4.22916136]
[1764514210869,0.9265,3035.4,3035.3,4.02116136]
[1764514211069,0.9265,3035.4,3035.3,3.50356725]
[1764514211368,0.9265,3035.4,3035.3,0.209]
[1764514213738,0.002,3035.4,3035.3,4.71816136]
[1764514214078,0.002,3035.4,3035.3,5.20566136]
[1764514214875,0.002,3035.4,3035.3,4.71816136]
[1764514216175,0.002,3035.4,3035.3,5.20566136]
[1764514217446,0.4758,3035.4,3035.3,4.22916136]
[1764514217682,0.002,3035.4,3035.3,4.71816136]
[1764514218069,0.002,3035.4,3035.3,5.20566136]
[1764514220179,0.4758,3035.4,3035.3,4.22916136]
[1764514220666,0.002,3035.4,3035.3,4.22916136]
[1764514221776,0.4758,3035.4,3035.3,4.02116136]
[1764514221980,0.9265,3035.4,3035.3,4.22916136]
[1764514222296,0.002,3035.4,3035.3,4.71816136]
[1764514224277,0.002,3035.4,3035.3,5.17456136]
[1764514224881,0.4521,3035.4,3035.3,4.22916136]
[1764514225085,0.002,3035.4,3035.3,4.22916136]
[1764514225254,0.002,3035.4,3035.3,4.68676136]
[1764514226385,0.4521,3035.4,3035.3,4.22916136]
[1764514227283,0.002,3035.4,3035.3,4.68676136]
[1764514227654,0.002,3035.4,3035.3,5.14316136]
[1764514228952,0.4521,3035.4,3035.3,4.22916136]
[1764514232065,0.002,3035.4,3035.3,4.68676136]
[1764514233472,0.002,3035.4,3035.3,5.14316136]
[1764514233674,0.002,3035.4,3035.3,8.98049603]
[1764514233987,0.002,3035.4,3035.3,10.8863255]
[1764514234383,0.002,3035.4,3035.3,10.88435124]
[1764514235124,0.002,3035.4,3035.3,9.1104481]
[1764514235998,0.4819,3037.2,3036.2,0.72559411]
[1764514236162,0.4819,3037.1,3036.4,1.77741862]
[1764514236564,0.04115903,3037.0,3036.5,0.209]
[1764514236768,0.04115903,3037.0,3036.2,0.4819]
[1764514236769,0.6453,3036.3,3036.2,0.4819]
[1764514236970,1.1272,3036.3,3036.2,0.209]
[1764514237164,1.1272,3036.3,3036.2,4.01918478]
[1764514237382,1.1272,3036.3,3036.2,4.22818478]
[1764514237891,1.1272,3036.3,3036.0,3.29380764]
[1764514238094,0.0133,3036.1,3036.0,3.29380764]
[1764514238294,0.0133,3036.1,3036.0,3.50280764]
[1764514238488,0.4952,3036.1,3036.0,3.50280764]
[1764514238865,0.4972,3036.1,3036.0,3.50280764]
[1764514241302,0.002,3036.1,3036.0,3.50280764]
[1764514241505,0.4521,3036.1,3036.0,3.50280764]